bitfinex-derivatives/quotes_ETHF0:USTF0_20241017
["timestamp","ask_amount","ask_price","bid_price","bid_amount"]
[1729189493305,4.59354919,2584.5,2584.2,3.2078]
[1729189493306,2.47179919,2584.4,2584.2,3.2078]
[1729189493507,2.47179919,2584.4,2584.3,0.38701]
[1729189493697,2.37247715,2584.4,2584.3,0.38701]
[1729189494510,3.14681476,2584.4,2584.3,0.38701]
[1729189495097,3.6331268,2584.4,2584.3,0.38701]
[1729189495508,0.38699,2584.4,2584.3,0.38701]
[1729189495804,0.38701,2584.3,2584.2,3.59481]
[1729189496010,2.37284286,2584.3,2584.2,3.59481]
[1729189496208,2.37284286,2584.3,2584.2,3.2078]
[1729189496209,1.16134761,2584.3,2584.2,3.2078]
[1729189496405,0.38702,2584.2,2583.9,3.35617]
[1729189496606,2.37321693,2584.2,2584.1,0.38703]
[1729189496914,3.14755454,2584.2,2584.1,0.38703]
[1729189497105,3.14755454,2584.2,2584.1,3.59483]
[1729189497905,2.76053454,2584.2,2584.1,3.59483]
[1729189498105,1.16135761,2584.2,2584.1,3.59483]
[1729189498503,3.14786769,2584.2,2584.1,3.59483]
[1729189498901,1.16135761,2584.2,2584.1,3.59483]
[1729189499116,0.38702,2584.2,2584.1,3.59483]
[1729189499812,0.38702,2584.2,2584.1,0.38703]
[1729189500216,1.1683,2584.3,2584.0,3.2078]
[1729189500417,1.1683,2584.3,2583.7,4.21773569]
[1729189500604,3.37073,2584.3,2583.7,6.40717569]
[1729189500809,0.38707,2584.0,2583.9,0.38706]
[1729189501423,4.38971008,2584.3,2583.7,5.39724]
[1729189501715,0.77433761,2584.5,2584.2,3.2078]
[1729189501912,0.77433761,2584.5,2584.4,3.40699]
[1729189502115,3.10111008,2585.1,2584.4,14.86701569]
[1729189502318,2.47179919,2585.3,2584.9,0.3869]
[1729189502319,0.38691,2585.0,2584.9,0.3869]
[1729189502518,1.45683974,2585.3,2584.8,4.332]
[1729189502710,1.1829,2585.3,2584.8,4.332]
[1729189503211,0.3869,2585.0,2584.8,4.332]
[1729189503516,1.1829,2585.3,2585.0,0.38689]
[1729189503517,0.38689,2585.1,2585.0,0.38689]
[1729189503714,1.1829,2585.3,2584.8,4.332]
[1729189504220,1.1829,2585.3,2585.1,3.59469]
[1729189504410,1.1829,2585.3,2585.1,3.59468]
[1729189504713,1.1829,2585.3,2585.1,3.2078]
[1729189504919,0.38687,2585.2,2585.1,3.59468]
[1729189505310,1.56977,2585.3,2585.1,3.2078]
[1729189505618,0.38687,2585.2,2585.1,3.59468]
[1729189506113,1.56976,2585.3,2585.2,0.38687]
[1729189506715,3.2078,2585.6,2585.1,3.2078]
[1729189507026,0.38687,2585.2,2585.1,3.2078]
[1729189507409,3.02,2585.5,2584.9,3.2078]
[1729189507605,0.38692,2584.9,2584.8,1.1242]
[1729189507808,3.02,2585.3,2584.8,1.1242]
[1729189508014,0.96722,2585.1,2584.5,6.2278]
[1729189508315,0.38693,2584.8,2584.7,0.38693]
[1729189508519,1.51791,2585.0,2584.9,0.38692]
[1729189509015,1.1667,2585.2,2584.8,3.59472]
[1729189509016,0.38689,2585.1,2584.8,3.59472]
[1729189509205,3.02,2585.0,2584.5,4.3634]
[1729189509412,0.38696,2584.6,2584.5,3.2078]
[1729189509814,1.55366,2584.6,2584.5,3.2078]
[1729189510010,2.37344008,2584.9,2584.7,0.38695]
[1729189510215,2.37344008,2584.9,2584.8,1.1303]
[1729189510216,0.38693,2584.9,2584.8,1.1303]
[1729189510519,5.00651008,2585.0,2584.2,5.5608]
[1729189510713,0.38701,2584.3,2584.2,3.59482]
[1729189511113,0.38701,2584.3,2584.2,3.2078]
[1729189511622,4.2395,2584.5,2584.1,0.77396385]
[1729189511826,0.38702,2584.2,2584.1,0.77396385]
[1729189518227,1.2195,2584.5,2584.4,0.38699]
[1729189518520,0.38697,2584.6,2584.5,0.38696]
[1729189518726,2.446,2584.9,2584.4,3.2078]
[1729189518931,0.38694,2584.8,2584.7,0.38694]
[1729189519421,2.446,2584.9,2584.4,3.2078]
[1729189519632,0.38697,2584.6,2584.5,0.38696]
[1729189520127,0.96731,2584.9,2584.4,3.2078]
[1729189520327,5.40231792,2585.4,2584.4,3.2078]
[1729189520328,3.02,2586.4,2584.4,3.2078]
[1729189520526,3.02,2586.4,2584.3,1.1186]
[1729189520527,25.0,3174.0,2588.9,0.38632]
[1729189520528,4.46338793,2589.6,2588.9,0.38632]
[1729189520824,3.69137613,2589.5,2588.8,3.2078]
[1729189521024,1.87273361,2589.1,2588.9,3.2078]
[1729189521224,1.87273361,2589.0,2588.7,1.51523604]
[1729189521426,1.87273361,2588.8,2588.7,1.51523604]
[1729189521819,1.87273361,2588.8,2588.5,3.2078]
[1729189522014,1.87273361,2588.6,2588.5,3.2078]
[1729189522741,47.7178,2589.5,2588.5,14.07599754]
[1729189522742,0.38626,2589.3,2588.5,14.07599754]
[1729189523025,3.71,2589.3,2589.0,3.2078]
[1729189523423,1.87273361,2589.1,2589.0,3.2078]
[1729189525329,2.25902361,2589.1,2589.0,3.2078]
[1729189525516,0.3863,2589.0,2588.5,3.2078]
[1729189525720,1.87273361,2588.6,2588.5,3.2078]
[1729189526431,3.71,2588.7,2588.5,3.2078]
[1729189526632,1.87273361,2588.6,2588.5,3.2078]
[1729189528233,0.38628,2589.2,2588.5,13.071]
[1729189528439,0.38628,2589.2,2589.0,3.2078]
[1729189528440,0.38629,2589.1,2589.0,3.2078]
[1729189528934,0.38629,2589.1,2587.8,4.6762]
[1729189528935,0.38632,2588.9,2588.7,3.2078]
[1729189529231,3.71,2588.8,2588.7,3.2078]
[1729189529544,4.09633,2588.8,2588.7,3.2078]
[1729189529731,3.71,2588.8,2588.7,3.2078]
[1729189530336,4.09633,2588.8,2588.7,3.2078]
[1729189531531,3.71,2588.8,2588.7,3.2078]
[1729189531734,1.963,2589.2,2588.7,3.2078]
[1729189531927,4.09632,2588.9,2588.7,3.2078]
[1729189532127,3.71,2588.9,2588.7,3.2078]
[1729189532934,0.38633,2588.8,2588.7,3.2078]
[1729189533328,3.8632,2588.8,2588.5,3.2078]
[1729189533629,4.09636,2588.6,2588.5,3.2078]
[1729189534137,7.95956,2588.6,2588.5,3.2078]
[1729189535033,0.3864,2588.4,2588.2,3.2078]
[1729189535235,3.71,2588.6,2588.2,3.2078]
[1729189535437,3.71,2588.6,2588.3,0.3864]
[1729189535738,3.71,2588.6,2587.5,5.39392]
[1729189535739,3.71,2588.6,2588.1,3.2078]
[1729189535935,0.38639,2588.5,2588.3,0.3864]
[1729189536144,0.38639,2588.5,2588.2,3.59421]
[1729189536441,3.71,2588.6,2588.2,3.2078]
[1729189536735,3.2078,2588.8,2588.2,3.2078]
[1729189536935,3.71,2588.5,2588.2,3.2078]
[1729189537140,0.96581,2588.9,2588.2,3.59422]
[1729189537141,0.38639,2588.4,2588.2,3.59422]
[1729189537342,0.3864,2588.4,2588.2,3.59422]
[1729189537530,3.71,2588.7,2588.2,3.2078]
[1729189537730,0.3864,2588.4,2588.2,3.59422]
[1729189538238,0.38639,2588.5,2588.3,0.38641]
[1729189538438,0.38639,2588.4,2588.2,3.59421]
[1729189539043,0.38641,2588.3,2588.2,3.2078]
[1729189539241,0.3864,2588.4,2588.2,3.59422]
[1729189539442,3.71,2588.6,2588.2,3.59422]
[1729189539746,0.3864,2588.4,2588.2,3.59422]
[1729189540238,0.38641,2588.3,2588.2,3.2078]
[1729189541241,0.38641,2588.3,2587.8,1.00499754]
[1729189541242,3.71,2588.4,2587.9,3.2078]
[1729189541435,0.38645,2588.0,2587.9,3.2078]
[1729189541640,0.38649,2587.8,2587.6,0.3865]
[1729189541841,0.38651,2587.7,2587.5,3.59431]
[1729189542040,4.67609,2588.2,2587.5,3.2078]
[1729189542240,0.38647,2587.9,2587.8,3.2078]
[1729189542437,0.38647,2587.9,2587.7,0.38649]
[1729189542636,0.38647,2587.9,2587.8,3.2078]
[1729189543140,0.38646,2588.0,2587.8,0.38648]
[1729189543339,0.38646,2588.0,2587.9,3.2078]
[1729189544143,0.38644,2588.1,2587.9,0.38646]
[1729189544444,0.38645,2588.0,2587.9,3.2078]
[1729189544643,1.1521,2588.3,2587.9,3.2078]
[1729189544951,0.38645,2588.0,2587.9,3.2078]
[1729189545136,1.1521,2588.3,2587.9,3.59426]
[1729189545137,0.38645,2588.1,2587.9,3.59426]
[1729189545336,1.1521,2588.3,2587.9,3.59426]
[1729189545537,0.38645,2588.0,2587.9,3.59426]
[1729189545738,0.38645,2588.0,2587.9,3.2078]
[1729189547337,5.82815,2588.3,2587.5,1.00499754]
[1729189547338,4.8621,2588.3,2587.6,3.2078]
[1729189547535,0.38649,2587.8,2587.7,0.38649]
[1729189547740,0.96606,2588.2,2587.6,4.21279754]
[1729189547941,0.38648,2587.9,2587.7,0.38649]
[1729189548145,4.8621,2588.3,2587.6,4.21279754]
[1729189548347,0.38646,2588.0,2587.9,3.2078]
[1729189549251,0.38645,2588.0,2587.9,3.59426]
[1729189549445,0.38645,2588.0,2587.9,3.2078]
[1729189549642,0.38645,2588.0,2587.9,3.59427]
[1729189549837,0.38645,2588.0,2587.9,3.2078]
[1729189550641,6.09016815,2588.3,2587.9,3.2078]
[1729189550847,0.38645,2588.0,2587.9,3.2078]
[1729189555259,0.38645,2588.0,2587.7,1.39148754]
[1729189555260,0.38648,2587.8,2587.7,1.00499754]
[1729189555460,0.38648,2587.8,2587.6,3.2078]
[1729189555461,0.3865,2587.7,2587.6,3.2078]
[1729189558452,0.38649,2587.8,2587.7,0.38648]
[1729189558658,0.38648,2587.9,2587.8,0.38647]
[1729189559773,0.96609,2588.2,2587.6,3.2078]
[1729189560069,0.96609,2588.2,2588.0,0.38643]
[1729189560070,0.38645,2588.1,2588.0,0.38643]
[1729189560268,1.735,2588.4,2588.3,0.38639]
[1729189560477,0.38637,2588.6,2588.5,0.38638]
[1729189560661,0.38637,2588.7,2588.6,0.38635]
[1729189560862,0.38637,2588.7,2588.6,3.2078]
[1729189561977,5.66654588,2588.9,2588.6,3.2078]
[1729189562175,0.38637,2588.7,2588.6,3.2078]
[1729189562672,0.38637,2588.7,2588.6,3.59416]
[1729189562877,0.38637,2588.7,2588.6,3.2078]
[1729189563372,3.2078,2589.4,2588.6,3.2078]
[1729189563373,4.67569,2589.2,2588.6,6.2702698]
[1729189563573,0.3863,2589.1,2589.0,1.38929678]
[1729189563775,0.38629,2589.2,2589.1,0.38627]
[1729189564070,0.38627,2589.2,2589.1,5.14054128]
[1729189564271,0.38627,2589.2,2589.1,7.16085601]
[1729189564473,0.38627,2589.3,2589.2,0.38626]
[1729189564662,13.9909,2589.7,2589.2,1.54646128]
[1729189564860,13.9909,2589.7,2589.1,5.22811473]
[1729189564861,10.7831,2589.7,2589.3,0.38625]
[1729189565062,10.7831,2589.7,2589.4,3.2078]
[1729189565272,0.38624,2589.5,2589.4,3.59403]
[1729189565972,0.38624,2589.5,2589.4,8.25244345]
[1729189566178,4.67548,2589.8,2589.4,8.25244345]
[1729189566179,0.38618,2589.8,2589.4,11.72781345]
[1729189566479,0.38618,2589.8,2589.7,3.59399]
[1729189566679,0.96524,2590.5,2589.7,12.84593375]
[1729189566878,0.38617,2589.9,2589.8,11.42032193]
[1729189567063,3.71,2590.2,2589.8,13.3625119]
[1729189567265,0.38617,2589.9,2589.8,6.61481405]
[1729189567466,0.38617,2589.9,2589.8,12.9681416]
[1729189567677,0.96531,2590.3,2589.8,12.9681416]
[1729189567862,6.63392565,2590.5,2590.2,2.52115952]
[1729189568067,4.31979565,2590.5,2590.4,2.01686792]
[1729189568372,6.05479565,2590.5,2590.4,6.67905916]
[1729189568573,0.60979565,2590.5,2590.4,3.57163702]
[1729189568969,4.09608,2590.5,2590.4,6.67915157]
[1729189569178,0.38608,2590.6,2590.5,0.38608]
[1729189569374,0.38608,2590.6,2590.5,4.65997055]
[1729189569775,0.38608,2590.6,2590.5,7.18113007]
[1729189570372,1.2349,2590.7,2590.5,4.65997055]
[1729189570571,0.38605,2590.7,2590.6,7.18113007]
[1729189570775,0.38605,2590.7,2590.6,4.65997055]
[1729189570977,0.38605,2590.7,2590.6,6.67235827]
[1729189571384,0.38605,2590.7,2590.6,4.65401356]
[1729189571680,0.38603,2590.9,2590.7,0.38604]
[1729189571880,0.38602,2590.9,2590.8,10.25565694]
[1729189572084,0.38602,2590.9,2590.8,10.38028542]
[1729189572475,0.38602,2590.9,2590.8,7.8591259]
[1729189572677,10.24602,2590.9,2590.8,6.26567671]
[1729189572880,10.24602,2590.9,2590.8,4.75637551]
[1729189573179,0.38602,2590.9,2590.8,6.26293242]
[1729189573381,0.38602,2590.9,2590.8,4.75639356]
[1729189573678,5.5399,2591.5,2590.8,6.76492301]
[1729189573679,0.96492,2591.3,2590.8,6.76492301]
[1729189573883,2.3321,2591.5,2591.2,1.50519983]
[1729189574177,2.71803,2591.5,2591.4,1.00346498]
[1729189574372,2.71803,2591.5,2591.1,4.21126498]
[1729189574373,2.3321,2591.5,2591.1,4.21126498]
[1729189574575,0.38593,2591.5,2591.4,3.2078]
[1729189574970,4.67472,2591.8,2591.3,1.00346498]
[1729189575278,0.386,2591.0,2590.9,1.00346498]
[1729189575577,0.96479,2591.6,2590.9,1.00346498]
[1729189575885,0.38597,2591.2,2591.1,3.2078]
[1729189576783,0.38597,2591.2,2591.1,3.59379]
[1729189577370,0.38595,2591.4,2591.2,0.38597]
[1729189577582,0.38594,2591.5,2591.1,6.9178]
[1729189577881,0.38593,2591.5,2591.4,3.2078]
[1729189579087,0.38599,2591.2,2591.1,3.2078]
[1729189580477,1.141,2591.4,2591.1,3.2078]
[1729189580680,0.38599,2591.2,2591.1,3.2078]
[1729189581178,3.2078,2591.3,2590.5,6.9178]
[1729189581384,1.141,2591.4,2590.5,3.71]
[1729189581572,0.38599,2591.1,2591.0,3.2078]
[1729189581777,41.76481,2591.6,2591.1,0.38599]
[1729189581778,0.38598,2591.2,2591.1,0.38599]
[1729189582081,3.2078,2591.7,2591.0,3.2078]
[1729189582282,0.38597,2591.2,2591.1,0.38598]
[1729189582479,0.96479,2591.6,2591.0,3.2078]
[1729189582979,0.38598,2591.2,2591.1,0.38598]
[1729189583183,0.96479,2591.6,2591.0,3.2078]
[1729189583681,0.38599,2591.1,2591.0,3.5938]
[1729189584088,0.38599,2591.1,2591.0,7.453]
[1729189584279,0.38599,2591.1,2591.0,7.067]
[1729189584480,0.38599,2591.1,2591.0,3.2078]
[1729189584984,1.219,2592.3,2591.0,16.777]
[1729189585283,3.71,2591.9,2591.3,3.2078]
[1729189585489,0.96482,2591.6,2590.9,3.2078]
[1729189585684,0.38597,2591.3,2591.2,0.38597]
[1729189585985,5.13714,2592.0,2591.2,0.38597]
[1729189585986,6.98798,2592.2,2591.2,3.2078]
[1729189586190,0.3859,2591.7,2591.6,0.38591]
[1729189586383,0.38591,2591.6,2591.5,3.2078]
[1729189586783,0.96466,2592.0,2591.5,3.2078]
[1729189587087,0.38593,2591.5,2591.4,3.2078]
[1729189587284,0.96476,2591.7,2591.3,3.2078]
[1729189587482,3.71,2591.6,2591.0,3.2078]
[1729189587788,0.38594,2591.4,2591.3,3.2078]
[1729189588180,1.2031,2591.5,2591.2,3.2078]
[1729189588380,0.38596,2591.3,2591.2,3.2078]
[1729189589075,0.38596,2591.3,2591.2,3.59377]
[1729189589382,0.38596,2591.3,2591.2,3.2078]
[1729189589983,0.38596,2591.3,2591.1,0.38598]
[1729189589984,1.2031,2591.5,2591.1,0.38599]
[1729189590180,0.38596,2591.3,2591.2,3.2078]
[1729189591781,0.38596,2591.3,2591.2,3.59377]
[1729189592182,0.38596,2591.3,2591.2,3.2078]
[1729189592383,1.2031,2591.5,2590.9,3.2078]
[1729189592583,0.38594,2591.4,2591.3,3.2078]
[1729189594789,0.38594,2591.4,2591.3,3.59376]
[1729189595594,0.38594,2591.4,2591.3,3.2078]
[1729189596278,0.38594,2591.4,2591.3,3.59376]
[1729189596484,0.38594,2591.4,2591.3,3.2078]
[1729189597287,0.38593,2591.6,2591.3,3.2078]
[1729189597489,3.97716,2592.0,2591.3,3.2078]
[1729189597692,0.38591,2591.7,2591.6,0.38589]
[1729189597888,0.38591,2591.7,2591.6,3.59369]
[1729189598092,0.38591,2591.7,2591.6,3.2078]
[1729189598690,0.9648,2591.6,2591.1,3.2078]
[1729189598991,0.38597,2591.2,2591.1,3.59379]
[1729189599189,0.38597,2591.2,2591.1,3.2078]
[1729189600090,0.38597,2591.2,2591.1,3.59379]
[1729189600694,0.96487,2591.4,2591.1,3.2078]
[1729189600895,0.38597,2591.2,2591.1,3.59379]
[1729189601091,0.38597,2591.2,2591.1,3.2078]
[1729189601491,0.38597,2591.2,2591.1,3.59379]
[1729189601891,0.38597,2591.2,2591.1,3.2078]
[1729189602192,0.38597,2591.2,2591.1,3.59379]
[1729189602391,0.38597,2591.3,2591.2,0.38597]
[1729189602591,0.38596,2591.4,2591.3,0.38595]
[1729189602897,0.21767002,2591.8,2591.1,4.21126498]
[1729189603103,0.3859,2591.8,2591.7,3.59368]
[1729189603296,0.38588,2591.9,2591.7,3.2078]
[1729189603501,0.38588,2591.9,2591.8,0.38587]
[1729189603797,0.38589,2591.8,2591.7,3.59368]
[1729189604494,0.38589,2591.8,2591.7,3.5937]
[1729189604890,0.38589,2591.8,2591.7,3.2078]
[1729189607101,0.38589,2591.8,2591.3,3.2078]
[1729189607290,0.38596,2591.3,2591.2,3.2078]
[1729189611606,0.38596,2591.3,2591.2,6.76372785]
[1729189612008,0.38596,2591.3,2591.2,8.23587139]
[1729189612402,0.38596,2591.3,2591.2,10.37106091]
[1729189612598,0.38596,2591.3,2591.2,3.56593845]
[1729189612807,0.38596,2591.3,2591.2,1.54736713]
[1729189613102,0.38596,2591.3,2591.2,3.06139869]
[1729189613309,1.62426,2591.3,2591.2,3.06139869]
[1729189614504,1.62426,2591.3,2591.2,1.54736713]
[1729189614701,1.1795354,2591.7,2591.2,6.77373845]
[1729189614904,2.12604,2591.8,2591.6,4.72335692]
[1729189615211,0.3859,2591.7,2591.6,3.2078]
[1729189615504,0.3859,2591.7,2591.6,6.2735271]
[1729189616305,0.3859,2591.7,2591.6,4.21854304]
[1729189616502,0.3859,2591.7,2591.6,4.75906644]
[1729189616808,0.3859,2591.7,2591.6,4.21883975]
[1729189617001,0.3859,2591.7,2591.6,6.27454359]
[1729189617302,0.3859,2591.7,2591.6,5.76993551]
[1729189617505,0.3859,2591.7,2591.6,4.7593322]
[1729189618508,0.3859,2591.7,2591.6,3.2078]
[1729189619005,0.38593,2591.5,2591.4,3.59373]
[1729189619404,0.38598,2591.3,2591.0,5.18404663]
[1729189619599,0.38598,2591.3,2591.2,0.38596]
[1729189620207,0.38598,2591.3,2591.2,4.24516]
[1729189620706,0.38596,2591.4,2591.3,0.38595]
[1729189620999,0.38596,2591.4,2591.3,3.59375]
[1729189622204,1.2423,2591.9,2591.3,13.067]
[1729189622406,0.38589,2591.8,2591.6,0.38591]
[1729189622703,0.38589,2591.8,2591.7,3.2078]
[1729189624103,0.38589,2591.8,2591.0,0.96501]
[1729189624104,6.0,2591.8,2591.0,0.96501]
[1729189624302,6.0,2591.8,2590.9,1.01123663]
[1729189624303,0.38593,2591.5,2591.4,3.59372]
[1729189624905,0.38593,2591.5,2591.4,0.38592]
[1729189625205,0.38593,2591.6,2591.5,0.38592]
[1729189625602,0.38592,2591.7,2591.6,0.38589]
[1729189626913,0.3859,2591.8,2591.7,0.38589]
[1729189627113,3.2078,2592.3,2591.6,4.86963663]
[1729189627325,3.2078,2592.3,2591.9,1.01123663]
[1729189627607,3.2078,2592.3,2592.0,1.39706663]
[1729189627608,0.38585,2592.1,2592.0,1.39706663]
[1729189627814,0.38585,2592.1,2592.0,0.38583]
[1729189628016,0.38585,2592.1,2592.0,1.39706663]
[1729189628210,0.38584,2592.2,2592.1,0.38582]
[1729189628413,4.29164664,2592.5,2592.1,1.01123663]
[1729189628609,1.46117664,2592.5,2592.1,1.01123663]
[1729189628809,0.38583,2592.3,2592.2,1.39669047]
[1729189629321,1.46117664,2592.5,2592.2,1.01033214]
[1729189629507,0.38583,2592.2,2592.1,1.01033214]
[1729189629713,0.38584,2592.1,2592.0,4.21813214]
[1729189630012,6.8676,2592.1,2591.8,1.01033214]
[1729189630212,0.3859,2591.7,2591.6,3.2078]
[1729189633022,0.3859,2591.7,2591.6,4.60404214]
[1729189633821,0.3859,2591.7,2591.6,3.59371]
[1729189634419,0.3859,2591.7,2591.6,3.2078]
[1729189635433,0.3859,2591.7,2591.6,3.59371]
[1729189636222,0.3859,2591.7,2591.6,3.2078]
[1729189639217,2.9976,2592.0,2591.6,3.2078]
[1729189639526,6.1484,2592.2,2591.9,0.38587]
[1729189639527,1.2115,2592.2,2591.9,0.38587]
[1729189639728,0.38586,2592.1,2592.0,0.38585]
[1729189640424,0.38585,2592.1,2592.0,0.38584]
[1729189641219,0.38583,2592.3,2592.2,0.38582]
[1729189641420,4.23869127,2592.6,2592.1,3.2078]
[1729189641813,0.38583,2592.2,2592.1,4.60397214]
[1729189642013,3.71,2592.2,2592.0,3.2078]
[1729189642219,1.57414,2592.1,2592.0,3.2078]
[1729189643422,0.38589,2591.8,2591.7,4.60402214]
[1729189643817,2.15293,2592.1,2592.0,0.38586]
[1729189643818,1.57415,2592.1,2592.0,0.38586]
[1729189644122,3.2078,2592.5,2591.9,1.01033214]
[1729189644518,0.38585,2592.1,2592.0,0.38584]
[1729189645415,0.9645,2592.4,2591.9,1.39619214]
[1729189645416,0.38586,2592.0,2591.9,1.39619214]
[1729189645720,0.38586,2592.0,2591.7,4.72335692]
[1729189645721,0.38584,2592.1,2592.0,0.38576493]
[1729189646026,0.38589,2591.8,2591.7,3.2078]
[1729189647127,0.38589,2591.8,2591.7,2.48404453]
[1729189647725,9.8584,2591.8,2591.2,1.01033214]
[1729189647927,0.38599,2591.1,2591.0,1.01033214]
[1729189648132,0.96491,2591.3,2590.7,1.51555692]
[1729189648429,0.96491,2591.3,2590.6,25.14618]
[1729189648430,0.38605,2590.7,2590.6,25.14618]
[1729189648733,0.38605,2590.7,2590.6,21.55232]
[1729189649225,10.09605,2590.7,2590.6,21.55232]
[1729189649426,17.16385,2590.7,2590.6,18.28311621]
[1729189649619,17.16385,2590.7,2590.6,12.58461621]
[1729189652532,16.46385,2590.7,2590.6,11.81724473]
[1729189652734,16.46385,2590.7,2590.6,9.91784473]
[1729189653227,16.0778,2590.7,2589.8,0.38618]
[1729189653426,3.01,2590.1,2589.3,5.79842]
[1729189653826,3.01,2590.1,2589.6,3.2078]
[1729189654130,0.38619,2589.8,2589.7,0.38619]
[1729189654524,3.01,2590.1,2589.3,5.79844]
[1729189654525,0.38621,2589.7,2589.6,0.3862]
[1729189655026,0.38621,2589.7,2589.3,5.79844]
[1729189655027,0.3862,2589.7,2589.4,0.38624]
[1729189655328,3.97537,2590.1,2589.3,4.8328]
[1729189655528,0.38622,2589.6,2589.5,0.38622]
[1729189655918,0.96541,2590.0,2589.5,3.8616]
[1729189656123,0.38622,2589.6,2589.5,0.38622]
[1729189656323,0.38623,2589.5,2589.4,0.38623]
[1729189656536,0.38621,2589.6,2589.5,12.19838]
[1729189657029,3.97543,2589.9,2589.5,12.58461]
[1729189657030,3.01,2589.9,2589.5,12.58461]
[1729189657238,3.2078,2590.1,2589.6,3.2078]
[1729189657425,0.3862,2589.8,2589.7,0.3862]
[1729189658331,3.2078,2590.1,2590.0,0.38615]
[1729189658332,0.38615,2590.1,2590.0,0.38615]
[1729189658530,0.38616,2590.0,2589.9,0.38616]
[1729189658730,0.38613,2590.2,2590.1,0.38613]
[1729189658930,3.2078,2590.4,2589.7,0.96549]
[1729189659129,0.38613,2590.2,2590.1,0.38613]
[1729189659332,0.38612,2590.3,2590.2,0.38612]
[1729189660438,3.2078,2590.4,2590.1,0.38613]
[1729189660439,0.38613,2590.2,2590.1,0.38613]
[1729189662136,0.3862,2589.8,2589.7,0.38619]
[1729189663231,0.38618,2589.9,2589.8,0.38617]
[1729189663438,4.17306,2590.4,2589.7,0.96548]
[1729189663439,3.2078,2590.4,2589.7,0.96548]
[1729189663644,0.38615,2590.1,2590.0,0.38615]
[1729189664242,3.2078,2590.4,2590.0,0.38615]
[1729189664243,4.17305,2590.4,2590.0,0.38615]
[1729189664446,0.38612,2590.3,2590.2,0.38611]
[1729189664938,3.2078,2590.4,2590.3,0.38609]
[1729189664939,0.3861,2590.4,2590.3,0.38609]
[1729189665130,4.7978,2590.8,2590.3,9.8608]
[1729189665333,0.38609,2590.5,2590.4,0.38609]
[1729189665636,0.38609,2590.5,2590.2,3.2078]
[1729189665637,0.3861,2590.4,2590.3,0.3861]
[1729189665841,4.7978,2590.8,2590.2,3.2078]
[1729189666136,5.7629,2590.8,2590.2,3.2078]
[1729189666342,5.7629,2590.8,2590.3,0.3861]
[1729189666343,0.38611,2590.4,2590.3,0.3861]
[1729189666530,0.96517,2590.6,2590.3,0.3861]
[1729189666730,0.38611,2590.4,2590.3,0.3861]
[1729189667441,0.96514,2590.7,2590.2,3.2078]
[1729189667644,0.38611,2590.3,2590.2,3.59391]
[1729189668033,0.38611,2590.3,2590.2,7.45471]
[1729189669830,0.38611,2590.3,2590.2,3.2078]
[1729189670141,0.38611,2590.3,2590.2,3.59392]
[1729189670335,0.96521,2590.5,2590.0,2.7969]
[1729189670336,0.38614,2590.1,2590.0,3.18304]
[1729189670537,3.71,2590.6,2590.0,6.0047]
[1729189670744,0.38611,2590.4,2590.3,0.3861]
[1729189671538,0.96517,2590.6,2590.0,6.0047]
[1729189671746,0.96517,2590.6,2590.2,0.38611]
[1729189671747,0.38613,2590.3,2590.2,0.38611]
[1729189672238,0.38614,2590.1,2590.0,6.39085]
[1729189672441,0.96526,2590.4,2589.7,2.68048]
[1729189672442,3.71,2590.4,2589.7,3.2078]
[1729189672742,0.38618,2589.8,2589.7,3.2078]
[1729189673344,0.38618,2589.8,2589.7,3.594]
[1729189673544,0.38618,2589.8,2589.7,0.3862]
[1729189675852,0.9654,2590.0,2589.6,1.6487]
[1729189676144,5.3111,2590.1,2589.5,12.19838]
[1729189676145,0.38621,2589.6,2589.5,12.19838]
[1729189677043,3.59401,2589.6,2589.5,12.19838]
[1729189677548,0.38621,2589.6,2589.5,12.19838]
[1729189677851,0.38624,2589.4,2589.3,0.38625]
[1729189678439,0.38622,2589.6,2589.5,0.38622]
[1729189679147,0.3862,2589.8,2589.7,0.38619]
[1729189679454,0.38621,2589.7,2589.6,0.3862]
[1729189679639,0.38619,2589.8,2589.7,0.38619]
[1729189680444,0.3862,2589.8,2589.7,0.38619]
[1729189684345,1.6011,2590.1,2589.6,0.96554]
[1729189684556,2.04842,2590.3,2590.2,0.38612]
[1729189684849,0.38615,2590.1,2590.0,0.38614]
[1729189685150,0.38617,2589.9,2589.8,4.72335692]
[1729189685354,0.38616,2590.1,2590.0,0.38614]
[1729189685652,4.17306,2590.4,2589.8,3.2078]
[1729189685856,0.38617,2590.0,2589.9,0.38616]
[1729189686047,0.38617,2590.0,2589.8,3.2078]
[1729189686048,0.38617,2589.9,2589.8,3.59398]
[1729189687147,0.38616,2590.0,2589.9,0.38616]
[1729189689157,0.38616,2590.0,2589.9,1.9257493]
[1729189689343,0.38616,2590.0,2589.9,1.5395893]
[1729189689545,0.38616,2590.0,2589.8,1.51555692]
[1729189689546,0.38617,2589.9,2589.8,1.90172692]
[1729189689752,0.38617,2589.9,2589.8,1.92590306]
[1729189690047,0.38617,2589.9,2589.8,0.38618]
[1729189690249,0.38617,2589.9,2589.8,3.44262666]
[1729189690560,0.38616,2590.0,2589.9,0.38615]
[1729189690864,0.38616,2590.0,2589.9,3.44264613]
[1729189691258,0.38616,2590.0,2589.9,1.92708921]
[1729189692158,0.38616,2590.0,2589.9,3.94566053]
[1729189692349,2.06924,2590.1,2590.0,0.38615]
[1729189692550,0.38614,2590.1,2590.0,1.92708921]
[1729189692749,0.38614,2590.2,2590.1,0.38613]
[1729189692950,0.38614,2590.2,2590.1,1.92706921]
[1729189693150,0.38614,2590.2,2590.1,3.55951053]